bitfinex/quotes_SOLUSD_20250410
["timestamp","ask_amount","ask_price","bid_price","bid_amount"]
[1744288407816,6.669e-05,115.17,115.12,149.06959217]
[1744288408128,6.669e-05,115.17,115.16,39.40849582]
[1744288408607,6.669e-05,115.17,115.16,121.29874958]
[1744288409701,62.40409191,115.25,115.16,81.89025376]
[1744288409915,39.40849582,115.21,115.16,81.89025376]
[1744288410214,18.64964886,115.24,115.16,81.89025376]
[1744288410400,39.40849582,115.2,115.16,81.89025376]
[1744288410599,18.64964886,115.24,115.16,121.29874958]
[1744288410812,43.68195455,115.26,115.19,39.40849582]
[1744288411113,83.16293887,115.25,115.17,17.69007309]
[1744288411315,83.16293887,115.25,115.2,39.40849582]
[1744288411614,39.40849582,115.21,115.17,56.95640734]
[1744288412112,39.40849582,115.2,115.17,17.54791152]
[1744288412410,8.6776,115.24,115.17,56.95640734]
[1744288412610,39.40849582,115.21,115.17,17.54791152]
[1744288412993,43.75444305,115.25,115.18,39.40849582]
[1744288413207,52.35825455,115.26,115.19,39.40849582]
[1744288413425,39.40849582,115.24,115.17,17.54791152]
[1744288413712,43.75444305,115.25,115.19,39.40849582]
[1744288413915,83.16293887,115.25,115.2,39.40849582]
[1744288414114,43.75444305,115.25,115.19,39.40849582]
[1744288414317,39.40849582,115.27,115.22,39.40849582]
[1744288414704,39.40849582,115.25,115.17,17.54791152]
[1744288414891,39.40849582,115.22,115.17,17.54791152]
[1744288415095,18.933972,115.27,115.17,56.95640734]
[1744288415295,39.40849582,115.2,115.17,17.54791152]
[1744288415696,18.64964886,115.25,115.17,17.54791152]
[1744288415913,39.40849582,115.2,115.17,17.54791152]
[1744288416423,27.32714886,115.24,115.17,17.54791152]
[1744288416616,39.40849582,115.2,115.17,17.54791152]
[1744288417318,39.40849582,115.18,115.17,17.54791152]
[1744288417709,8.677,115.25,115.17,56.95640734]
[1744288418027,39.40849582,115.24,115.19,39.40849582]
[1744288418201,39.40849582,115.23,115.19,39.40849582]
[1744288418517,39.40849582,115.24,115.19,39.40849582]
[1744288418719,39.40849582,115.26,115.2,39.40849582]
[1744288418922,39.40849582,115.25,115.2,39.40849582]
[1744288419120,43.9589001,115.28,115.21,39.40849582]
[1744288419337,39.40849582,115.26,115.21,39.40849582]
[1744288419703,52.6334001,115.28,115.17,17.54791152]
[1744288419704,39.40849582,115.25,115.2,39.40849582]
[1744288420203,39.40849582,115.25,115.17,17.54791152]
[1744288420204,39.40849582,115.25,115.19,39.40849582]
[1744288420412,39.40849582,115.24,115.19,39.40849582]
[1744288420799,43.9589001,115.28,115.2,39.40849582]
[1744288421126,39.40849582,115.25,115.2,39.40849582]
[1744288421319,39.40849582,115.26,115.21,39.40849582]
[1744288422020,39.40849582,115.25,115.17,17.54791152]
[1744288422237,43.9589001,115.28,115.22,39.40849582]
[1744288422423,39.40849582,115.27,115.22,39.40849582]
[1744288422623,43.9589001,115.28,115.17,17.54791152]
[1744288422932,83.36739592,115.28,115.23,39.40849582]
[1744288423311,39.40849582,115.25,115.2,65.40849582]
[1744288423713,39.40849582,115.25,115.2,39.40849582]
[1744288423917,18.64964886,115.27,115.21,39.40849582]
[1744288424135,39.40849582,115.26,115.21,39.40849582]
[1744288424632,43.9589001,115.28,115.2,39.40849582]
[1744288424811,39.40849582,115.26,115.21,39.40849582]
[1744288425020,39.40849582,115.24,115.17,17.54791152]
[1744288425237,39.40849582,115.25,115.2,39.40849582]
[1744288425535,39.40849582,115.25,115.17,17.54791152]
[1744288425712,52.6334001,115.28,115.18,0.28432314]
[1744288425713,43.9589001,115.28,115.18,0.28432314]
[1744288425908,39.40849582,115.26,115.21,39.40849582]
[1744288426325,39.40849582,115.25,115.17,17.54791152]
[1744288426534,39.40849582,115.24,115.2,39.40849582]
[1744288426713,39.40849582,115.25,115.2,39.40849582]
[1744288426911,39.40849582,115.25,115.17,17.54791152]
[1744288427124,39.40849582,115.25,115.2,39.40849582]
[1744288427329,18.64964886,115.27,115.2,39.40849582]
[1744288427633,39.40849582,115.25,115.2,39.40849582]
[1744288428030,18.64964886,115.25,115.17,17.54791152]
[1744288428222,39.40849582,115.22,115.18,30.0]
[1744288428421,39.40849582,115.23,115.18,39.40849582]
[1744288428622,18.64964886,115.25,115.17,56.95640734]
[1744288428925,39.40849582,115.21,115.17,17.54791152]
[1744288429112,39.40849582,115.21,115.17,56.95640734]
[1744288429510,39.40849582,115.21,115.17,17.54791152]
[1744288429722,39.40849582,115.2,115.17,17.54791152]
[1744288429918,39.40849582,115.19,115.17,17.54791152]
[1744288430314,8.6779,115.24,115.17,17.54791152]
[1744288430315,39.40849582,115.2,115.17,17.54791152]
[1744288430749,39.40849582,115.19,115.17,17.54791152]
[1744288431041,39.40849582,115.2,115.17,17.54791152]
[1744288431215,0.28432314,115.24,115.17,17.54791152]
[1744288431414,39.40849582,115.22,115.17,56.95640734]
[1744288431732,39.40849582,115.21,115.17,56.95640734]
[1744288432115,39.40849582,115.22,115.17,56.95640734]
[1744288432345,39.40849582,115.26,115.18,39.40849582]
[1744288432638,39.40849582,115.25,115.2,39.40849582]
[1744288432933,39.40849582,115.23,115.18,39.40849582]
[1744288433133,18.933972,115.25,115.17,17.54791152]
[1744288433333,18.933972,115.25,115.17,56.95640734]
[1744288433636,39.40849582,115.21,115.17,56.95640734]
[1744288434029,39.40849582,115.23,115.19,39.40849582]
[1744288434341,39.40849582,115.23,115.18,39.40849582]
[1744288434913,39.40849582,115.23,115.17,17.54791152]
[1744288435118,39.40849582,115.22,115.17,56.95640734]
[1744288435656,39.40849582,115.22,115.18,39.40849582]
[1744288435838,39.40849582,115.21,115.17,56.95640734]
[1744288436140,39.40849582,115.22,115.17,56.95640734]
[1744288436339,27.32644886,115.25,115.17,17.54791152]
[1744288436530,39.40849582,115.21,115.17,56.95640734]
[1744288436937,39.40849582,115.2,115.17,17.54791152]
[1744288437338,39.40849582,115.2,115.18,163.78050753]
[1744288437539,18.64964886,115.25,115.18,163.78050753]
[1744288437540,16.1354424,115.25,115.18,163.78050753]
[1744288437838,39.40849582,115.2,115.18,163.78050753]
[1744288438239,39.40849582,115.26,115.18,163.78050753]
[1744288438738,9.25886893,115.21,115.19,17.54791152]
[1744288438937,39.40849582,115.22,115.19,17.54791152]
[1744288439149,39.40849582,115.26,115.19,17.54791152]
[1744288439342,0.03,115.27,115.19,164.90556545]
[1744288439522,39.40849582,115.25,115.2,39.40849582]
[1744288439730,39.40849582,115.22,115.19,125.49706963]
[1744288440022,39.40849582,115.26,115.19,125.49706963]
[1744288440023,39.40849582,115.23,115.19,125.49706963]
[1744288440244,39.40849582,115.24,115.21,17.54791152]
[1744288440749,39.40849582,115.22,115.21,17.54791152]
[1744288442429,18.64964886,115.21,115.2,80.95319526]
[1744288442621,109.83786364,115.21,115.2,59.56209526]
[1744288443527,109.83786364,115.21,115.2,38.17099526]
[1744288443837,118.51766364,115.21,115.2,16.77989526]
[1744288444035,118.51766364,115.21,115.2,8.72209526]
[1744288444342,45.013972,115.2,115.19,68.93825811]
[1744288444526,0.28432314,115.19,115.18,122.83538065]
[1744288444730,44.933972,115.16,115.14,0.063]
[1744288444930,39.40849582,115.15,115.14,0.063]
[1744288445231,39.40849582,115.2,115.14,0.063]
[1744288445232,39.40849582,115.16,115.14,0.063]
[1744288445444,39.40849582,115.15,115.14,0.063]
[1744288445844,39.40849582,115.16,115.14,0.063]
[1744288446252,18.64964886,115.21,115.14,0.063]
[1744288446552,39.40849582,115.16,115.14,0.063]
[1744288446733,39.40849582,115.15,115.14,0.063]
[1744288446934,39.40849582,115.16,115.14,0.063]
[1744288447233,39.40849582,115.15,115.14,0.063]
[1744288447938,27.615572,115.19,115.14,0.063]
[1744288448268,13.49613516,115.21,115.14,0.063]
[1744288448442,39.40849582,115.2,115.15,39.40849582]
[1744288448762,13.49613516,115.19,115.15,39.40849582]
[1744288448961,39.40849582,115.18,115.14,39.47149582]
[1744288449251,26.36163291,115.16,115.14,0.063]
[1744288449439,26.36163291,115.15,115.14,0.063]
[1744288450233,61.40756582,115.15,115.14,0.063]
[1744288450431,80.34153782,115.15,115.14,0.063]
[1744288451332,80.34153782,115.15,115.06,0.063]
[1744288451333,26.0,115.11,115.06,0.063]
[1744288451545,26.36163291,115.08,115.06,0.063]
[1744288452841,38.27391755,115.08,115.06,0.063]
[1744288453438,11.91228464,115.08,115.06,0.063]
[1744288453648,38.27391755,115.08,115.06,0.063]
[1744288453968,73.32515046,115.08,115.06,0.063]
[1744288454136,87.33716641,115.08,115.0,16.55150493]
[1744288454458,26.36163291,115.04,115.0,16.55150493]
[1744288454764,26.36163291,115.06,115.01,26.36163291]
[1744288455137,11.91228464,115.07,115.03,26.36163291]
[1744288455640,11.91228464,115.07,115.0,25.24700493]
[1744288456032,11.91228464,115.06,115.0,25.24700493]
[1744288456234,11.91228464,115.06,115.04,26.36163291]
[1744288457058,11.91228464,115.06,115.0,46.98610493]
[1744288457352,26.94115276,115.06,115.0,25.24700493]
[1744288457554,53.30278567,115.06,115.02,26.36163291]
[1744288457737,26.36163291,115.05,115.0,16.55150493]
[1744288458459,26.36163291,115.03,115.0,16.55150493]
[1744288458658,26.36163291,115.02,115.0,16.55150493]
[1744288458843,26.36163291,115.01,115.0,16.55150493]
[1744288459331,26.36163291,115.02,115.0,16.55150493]
[1744288459534,26.36163291,115.01,115.0,16.55150493]
[1744288460137,8.6936,115.03,115.0,16.55150493]
[1744288460362,26.36163291,115.01,115.0,16.55150493]
[1744288461759,8.6936,115.03,115.0,16.55150493]
[1744288461960,26.36163291,115.01,115.0,16.55150493]
[1744288462366,35.05643291,115.01,115.0,16.55150493]
[1744288463235,27.34224886,115.04,115.0,16.55150493]
[1744288463462,26.36163291,115.02,115.0,16.55150493]
[1744288463767,8.6926,115.04,115.0,16.55150493]
[1744288463969,26.36163291,115.01,115.0,16.55150493]
[1744288464268,26.36163291,115.04,115.0,16.55150493]
[1744288464469,35.18376593,115.09,115.07,14.667622]
[1744288464662,52.72326582,115.08,115.07,14.667622]
[1744288464852,71.37291468,115.08,115.07,14.667622]
[1744288465045,80.8234583,115.1,115.0,16.55150493]
[1744288465264,26.36163291,115.01,115.0,16.55150493]
[1744288468862,35.05643291,115.01,115.0,16.55150493]
[1744288469169,53.70608177,115.01,115.0,16.55150493]
[1744288469980,53.99040491,115.01,115.0,16.55150493]
[1744288470485,26.0,114.97,114.95,0.063]
[1744288470650,71.65723782,114.96,114.93,0.063]
[1744288470846,26.36163291,114.94,114.88,0.063]
[1744288471074,26.36163291,114.89,114.88,0.063]
[1744288471677,26.36163291,114.96,114.88,8.7676]
[1744288471978,26.36163291,114.92,114.88,8.7676]
[1744288472148,18.933972,114.95,114.88,0.063]
[1744288472475,26.36163291,114.89,114.88,0.063]
[1744288472855,45.01128177,114.89,114.88,0.063]
[1744288473071,53.71518177,114.89,114.88,0.063]
[1744288473279,45.01128177,114.89,114.88,0.063]
[1744288473474,18.64964886,114.88,114.8,8.1325]
[1744288474451,26.36163291,114.84,114.8,8.1325]
[1744288474656,26.36163291,114.82,114.8,8.1325]
[1744288474852,0.28432314,114.86,114.8,8.1325]
[1744288475069,26.36163291,114.81,114.8,8.1325]
[1744288475264,26.36163291,114.81,114.79,0.063]
[1744288475478,45.29560491,114.8,114.79,0.063]
[1744288475778,45.29560491,114.8,114.72,0.063]
[1744288475779,18.933972,114.79,114.72,0.063]
[1744288475988,18.64964886,114.77,114.72,0.063]
[1744288476153,18.933972,114.77,114.72,0.063]
[1744288476360,8.7155,114.74,114.72,0.063]
[1744288476554,8.7138,114.76,114.72,0.063]
[1744288476755,26.36163291,114.73,114.72,0.063]
[1744288477059,8.99742314,114.77,114.72,0.063]
[1744288477280,18.64964886,114.77,114.72,0.063]
[1744288477576,18.64964886,114.8,114.72,39.89429773]
[1744288477774,119.72541235,114.76,114.69,0.28432314]
[1744288477962,119.72541235,114.76,114.68,36.10127173]
[1744288478159,119.72541235,114.76,114.71,39.83129773]
[1744288478367,13.22628531,114.73,114.72,8.7168]
[1744288478558,13.22628531,114.73,114.71,26.0]
[1744288478881,13.22628531,114.73,114.68,5.58237173]
[1744288479280,13.22628531,114.73,114.69,39.83129773]
[1744288479460,13.22628531,114.73,114.7,39.83129773]
[1744288479980,13.22628531,114.73,114.69,8.7191]
[1744288479981,13.22628531,114.73,114.72,39.83129773]
[1744288480156,13.22628531,114.73,114.69,30.65906157]
[1744288480480,13.22628531,114.73,114.69,30.5169]
[1744288480653,13.22628531,114.73,114.71,39.83129773]
[1744288480856,13.22628531,114.73,114.69,30.5169]
[1744288481083,13.22628531,114.73,114.72,39.83129773]
[1744288481284,13.22628531,114.73,114.72,40.11562087]
[1744288481574,4.89298531,114.73,114.7,18.933972]
[1744288481787,53.88230553,114.77,114.7,18.933972]
[1744288481788,53.88230553,114.77,114.73,0.28432314]
[1744288481994,53.88230553,114.77,114.71,0.28432314]
[1744288482157,53.88230553,114.77,114.76,39.83129773]
[1744288482361,53.88230553,114.77,114.73,39.83129773]
[1744288482561,53.88230553,114.77,114.69,21.7978]
[1744288482764,53.88230553,114.77,114.7,8.7183]
[1744288483084,39.83129773,114.76,114.71,39.83129773]
[1744288483384,53.88230553,114.77,114.73,39.83129773]
[1744288483581,53.88230553,114.77,114.75,39.83129773]
[1744288484379,32.21570553,114.77,114.76,40.11562087]
[1744288484585,32.21570553,114.77,114.76,48.82942087]
[1744288484586,23.88240553,114.77,114.76,48.82942087]
[1744288484772,5.53e-06,114.77,114.76,67.47906973]
[1744288484983,107.96908132,114.82,114.77,18.933972]
[1744288485282,107.96908132,114.82,114.8,39.83129773]
[1744288485462,107.96908132,114.82,114.79,39.83129773]
[1744288485665,107.96908132,114.82,114.77,0.28432314]
[1744288485868,107.96908132,114.82,114.8,39.83129773]
[1744288486180,107.96908132,114.82,114.77,18.64964886]
[1744288486181,107.96908132,114.82,114.77,0.28432314]
[1744288486386,147.80037905,114.82,114.77,39.83129773]
[1744288486684,147.80037905,114.82,114.76,39.83129773]
[1744288486685,39.83129773,114.81,114.76,39.83129773]
[1744288486982,39.83129773,114.81,114.7,18.64964886]
[1744288486983,18.64964886,114.81,114.7,18.64964886]
[1744288487162,39.83129773,114.79,114.74,39.83129773]
[1744288487669,18.64964886,114.83,114.75,39.83129773]
[1744288487670,39.83129773,114.8,114.75,39.83129773]
[1744288488278,8.7077,114.85,114.77,39.83129773]
[1744288488482,0.4999892,114.96,114.77,18.933972]
[1744288488674,39.83129773,114.87,114.82,39.83129773]
[1744288488974,39.83129773,114.84,114.8,39.83129773]
[1744288489280,39.83129773,114.85,114.8,39.83129773]
[1744288489493,18.64964886,114.89,114.8,0.28432314]
[1744288489661,18.64964886,114.89,114.82,39.83129773]
[1744288489856,39.83129773,114.87,114.82,39.83129773]
[1744288490173,39.83129773,114.88,114.83,39.83129773]
[1744288490370,39.83129773,114.87,114.8,0.28432314]
[1744288490571,39.83129773,114.87,114.82,39.83129773]
[1744288490770,8.7042,114.89,114.83,39.83129773]
[1744288491065,39.83129773,114.87,114.8,0.28432314]
[1744288491255,39.83129773,114.87,114.83,39.83129773]
[1744288491460,39.83129773,114.87,114.82,39.83129773]
[1744288492177,39.83129773,114.86,114.81,39.83129773]
[1744288492469,39.83129773,114.85,114.8,39.83129773]
[1744288492664,39.83129773,114.84,114.78,21.0372]
[1744288492861,18.64964886,114.88,114.78,21.0372]
[1744288492862,8.7054,114.87,114.78,21.0372]
[1744288493062,8.7054,114.87,114.78,48.54319773]
[1744288493279,39.83129773,114.83,114.78,48.54319773]
[1744288493475,8.7054,114.87,114.78,8.7119]
[1744288493689,39.83129773,114.82,114.78,39.83129773]
[1744288494182,18.64964886,114.86,114.77,48.54399773]
[1744288494388,39.83129773,114.82,114.77,48.54399773]
[1744288494774,8.707,114.85,114.78,48.54319773]
[1744288494977,39.83129773,114.83,114.78,48.54319773]
[1744288495177,0.063,114.85,114.81,39.83129773]
[1744288495566,39.89429773,114.85,114.81,39.83129773]
[1744288495960,0.063,114.85,114.8,39.83129773]
[1744288496287,8.7042,114.89,114.82,39.83129773]
[1744288496466,39.83129773,114.87,114.82,39.83129773]
[1744288496665,8.7042,114.89,114.83,39.83129773]
[1744288496991,39.83129773,114.87,114.82,39.83129773]
[1744288497166,11.9611,114.93,114.84,0.28432314]
[1744288497368,39.83129773,114.89,114.83,0.28432314]
[1744288497667,39.83129773,114.89,114.85,39.83129773]
[1744288497868,39.83129773,114.9,114.85,39.83129773]
[1744288498195,11.9611,114.93,114.85,39.83129773]
[1744288498397,8.6994,114.95,114.87,39.83129773]
[1744288498573,8.6994,114.95,114.88,39.83129773]
[1744288498768,39.83129773,114.92,114.88,48.53579773]
[1744288499092,8.6994,114.95,114.87,48.53629773]
[1744288499390,0.063,114.98,114.94,39.83129773]
[1744288499573,39.89429773,114.98,114.92,18.933972]
[1744288499894,0.063,114.98,114.88,18.933972]
[1744288500210,0.063,114.98,114.94,39.83129773]
[1744288500373,0.063,114.98,114.95,39.83129773]
[1744288500570,0.063,114.98,114.93,0.28432314]
[1744288500780,0.063,114.98,114.87,4.31456562]
[1744288500781,39.83129773,114.96,114.87,4.31456562]
[1744288500971,39.83129773,114.94,114.87,18.933972]
[1744288501295,39.83129773,114.96,114.91,40.11562087]
[1744288501799,0.063,114.98,114.95,39.83129773]
[1744288501982,0.063,114.98,114.96,39.83129773]
[1744288502175,0.063,114.98,114.94,0.28432314]
[1744288502503,39.89429773,114.98,114.9,58.48094659]
[1744288502676,39.89429773,114.98,114.87,4.29282101]
[1744288502677,0.063,114.98,114.92,39.83129773]
[1744288502881,39.83129773,114.97,114.93,39.83129773]
[1744288503204,0.063,114.98,114.94,39.83129773]
[1744288503498,0.063,114.98,114.95,39.83129773]
[1744288503872,0.063,114.98,114.9,18.933972]
[1744288504169,0.063,114.98,114.96,39.83129773]
[1744288504382,0.063,114.98,114.97,58.76526973]
[1744288504892,0.063,114.98,114.97,84.76526973]
[1744288505271,0.063,114.98,114.97,52.70204571]
[1744288505477,0.063,114.98,114.97,26.28432314]
[1744288505681,0.063,114.98,114.97,52.70204571]
[1744288506202,0.063,114.98,114.97,26.41772257]
[1744288506370,0.063,114.98,114.97,26.70204571]
[1744288506572,0.063,114.98,114.97,26.41772257]
[1744288506800,0.063,114.98,114.97,26.55988414]
[1744288507212,0.063,115.05,114.97,45.35169457]
[1744288507415,0.063,115.05,115.02,26.41772257]
[1744288507585,0.063,115.05,115.03,26.41772257]
[1744288507901,0.063,115.05,114.98,0.28432314]
[1744288508221,26.41772257,115.01,114.94,298.64]
[1744288508528,26.41772257,115.01,114.97,26.41772257]
[1744288508908,0.063,115.05,114.98,26.41772257]
[1744288509510,26.48072257,115.05,114.96,26.41772257]
[1744288509715,26.41772257,115.03,114.98,26.41772257]
[1744288510085,26.41772257,115.02,114.98,26.41772257]
[1744288510316,0.063,115.05,115.01,26.41772257]
[1744288510622,26.41772257,115.04,114.98,0.14216157]
[1744288511116,26.48072257,115.05,115.0,26.41772257]
[1744288511582,26.41772257,115.02,114.9,46.91772257]
[1744288511899,26.41772257,115.0,114.9,26.41772257]
[1744288512082,26.41772257,114.98,114.9,26.41772257]
[1744288512284,18.64964886,115.01,114.95,26.41772257]
[1744288512580,26.41772257,114.99,114.9,26.41772257]
[1744288512781,26.41772257,114.98,114.94,325.05772257]
[1744288512997,26.41772257,114.96,114.92,26.41772257]
[1744288513241,18.64964886,115.01,114.89,26.27]
[1744288513242,26.41772257,114.95,114.89,26.27]
[1744288513382,26.41772257,114.93,114.89,52.68772257]
[1744288513586,26.41772257,114.92,114.89,26.27]
[1744288513910,26.41772257,114.93,114.88,26.41772257]
[1744288514224,26.41772257,114.9,114.81,12.2825]
[1744288514420,26.41772257,114.89,114.85,26.41772257]
[1744288514625,18.933972,114.94,114.81,12.2825]
[1744288514828,18.933972,114.94,114.85,26.41772257]
[1744288515032,26.41772257,114.89,114.84,26.41772257]
[1744288515201,26.41772257,114.89,114.85,26.41772257]
[1744288515403,39.72928995,114.89,114.85,39.72928995]
[1744288515603,39.72928995,114.9,114.85,39.72928995]
[1744288516004,8.7021,114.92,114.85,39.72928995]
[1744288516241,39.72928995,114.9,114.85,39.72928995]
[1744288516400,27.34904886,114.95,114.88,39.72928995]
[1744288516727,18.64964886,114.95,114.89,39.72928995]
[1744288516902,39.72928995,114.93,114.89,39.72928995]
[1744288517328,364.2248892,114.99,114.9,39.72928995]
[1744288517329,8.6974,114.98,114.9,39.72928995]
[1744288517635,39.72928995,114.93,114.88,39.72928995]
[1744288517824,39.72928995,114.91,114.86,39.72928995]
[1744288518030,39.72928995,114.9,114.85,39.72928995]
[1744288518408,39.72928995,114.91,114.86,39.72928995]
[1744288518618,39.72928995,114.9,114.86,39.72928995]
[1744288518937,39.72928995,114.89,114.85,39.72928995]
[1744288519109,39.72928995,114.89,114.81,12.2825]
[1744288519426,39.72928995,114.88,114.83,39.72928995]
[1744288519598,39.72928995,114.87,114.8,298.5]
[1744288519804,39.72928995,114.87,114.78,39.75928995]
[1744288519805,39.72928995,114.86,114.81,39.72928995]
[1744288520203,39.72928995,114.85,114.81,39.72928995]
[1744288520406,39.72928995,114.84,114.8,39.72928995]
[1744288520703,39.72928995,114.84,114.79,39.72928995]
[1744288521036,39.72928995,114.84,114.78,0.03]
[1744288521037,39.72928995,114.8,114.78,0.03]
[1744288521200,39.72928995,114.79,114.78,0.03]
[1744288521535,58.37893881,114.79,114.78,0.03]
[1744288521923,18.64964886,114.8,114.78,0.03]
[1744288522114,58.37893881,114.8,114.78,0.03]
[1744288522314,18.64964886,114.8,114.78,0.03]
[1744288522735,39.72928995,114.79,114.78,0.03]
[1744288523139,58.37893881,114.79,114.78,0.03]
[1744288523301,67.09043881,114.79,114.73,0.03]
[1744288523507,39.72928995,114.76,114.73,0.03]
[1744288523809,39.72928995,114.77,114.73,0.03]
[1744288524126,18.64964886,114.77,114.73,0.03]
[1744288524508,18.64964886,114.79,114.73,0.03]
[1744288524827,39.72928995,114.76,114.73,0.03]
[1744288525046,7.5033,114.8,114.75,39.72928995]
[1744288525330,39.72928995,114.79,114.75,39.72928995]
[1744288525505,39.72928995,114.78,114.73,39.75928995]
[1744288525710,39.72928995,114.77,114.73,0.03]
[1744288525907,39.72928995,114.75,114.73,0.03]
[1744288526134,39.72928995,114.76,114.73,0.03]
[1744288526322,39.72928995,114.75,114.73,0.03]
[1744288526839,39.72928995,114.74,114.73,0.03]
[1744288527132,16.2143,114.8,114.73,0.03]
[1744288527434,39.72928995,114.77,114.73,0.03]
[1744288527624,18.64964886,114.79,114.73,39.75928995]
[1744288527826,39.72928995,114.78,114.74,39.72928995]
[1744288528123,27.36124886,114.79,114.73,0.03]
[1744288528316,39.72928995,114.76,114.73,0.03]
[1744288528521,39.72928995,114.74,114.73,0.03]
[1744288528915,18.64964886,114.78,114.73,0.03]
[1744288529108,58.37893881,114.75,114.73,0.03]
[1744288529311,58.37893881,114.74,114.73,0.03]
[1744288529525,67.09423881,114.74,114.73,0.03]
[1744288529726,58.37893881,114.74,114.73,0.03]
[1744288530121,67.09423881,114.74,114.73,0.03]
[1744288530330,58.37893881,114.74,114.73,0.03]
[1744288530641,8.7141,114.76,114.73,0.03]
[1744288530809,18.64964886,114.75,114.73,0.03]
[1744288531143,18.64964886,114.74,114.73,0.03]
[1744288531532,58.37893881,114.74,114.73,0.03]
[1744288531729,67.09423881,114.74,114.73,0.03]
[1744288532323,67.37856195,114.74,114.73,0.03]
[1744288532847,67.37856195,114.74,114.73,0.0001]
[1744288533019,18.64964886,114.73,114.7,0.03]
[1744288533214,39.72928995,114.71,114.7,0.03]
[1744288533729,39.72928995,114.72,114.7,0.03]
[1744288533924,39.72928995,114.71,114.7,0.03]
[1744288534121,58.37893881,114.71,114.7,0.03]
[1744288535768,67.38086195,114.71,114.7,0.03]
[1744288535918,26.11,114.72,114.7,0.03]
[1744288536254,39.72928995,114.72,114.7,0.03]
[1744288536627,8.7153,114.74,114.7,0.03]
[1744288536830,39.72928995,114.72,114.7,0.03]
[1744288537243,26.56579357,114.72,114.7,0.03]
[1744288537551,26.56579357,114.74,114.7,0.03]
[1744288537735,26.56579357,114.72,114.7,0.03]
[1744288538347,8.7153,114.74,114.7,0.03]
[1744288538548,26.56579357,114.72,114.7,0.03]
[1744288538854,26.56579357,114.71,114.7,0.03]
[1744288539150,8.7149,114.75,114.7,0.03]
[1744288539366,26.56579357,114.72,114.7,0.03]
[1744288539861,26.56579357,114.71,114.7,0.03]
[1744288540057,0.4999892,114.84,114.7,26.59579357]
[1744288540246,0.4999892,114.83,114.73,0.28432314]
[1744288540558,26.56579357,114.75,114.71,12.4853]
[1744288541149,26.56579357,114.76,114.71,39.05109357]
[1744288541349,26.56579357,114.76,114.72,26.56579357]
[1744288541561,26.56579357,114.76,114.71,12.4853]
[1744288541730,26.56579357,114.75,114.71,12.4853]
[1744288542064,26.56579357,114.75,114.7,26.59579357]
[1744288542262,26.56579357,114.78,114.72,0.28432314]
[1744288542433,8.7111,114.8,114.7,0.03]
[1744288542632,26.56579357,114.75,114.7,0.31432314]
[1744288542833,0.14216157,114.81,114.73,26.56579357]
[1744288543137,26.56579357,114.79,114.74,26.85011671]
[1744288543340,26.56579357,114.78,114.74,0.28432314]
[1744288543640,26.56579357,114.77,114.7,18.67964886]
[1744288543945,26.56579357,114.76,114.71,26.85011671]
[1744288544155,26.56579357,114.76,114.71,0.28432314]
[1744288544340,26.56579357,114.75,114.71,26.56579357]
[1744288544546,26.56579357,114.75,114.7,26.59579357]
[1744288545152,26.56579357,114.74,114.7,0.03]
[1744288545452,26.56579357,114.75,114.7,26.59579357]
[1744288546031,18.64964886,114.77,114.7,26.59579357]
[1744288546251,26.56579357,114.75,114.7,26.59579357]
[1744288546457,18.64964886,114.77,114.7,26.59579357]
[1744288546458,18.64964886,114.77,114.72,26.56579357]
[1744288546757,26.56579357,114.76,114.71,26.56579357]
[1744288547139,26.56579357,114.78,114.73,26.56579357]
[1744288547462,8.7092,114.82,114.71,26.56579357]
[1744288547463,26.56579357,114.76,114.71,26.56579357]
[1744288547848,26.56579357,114.75,114.7,0.03]
[1744288548039,18.64964886,114.78,114.72,26.56579357]
[1744288548270,26.56579357,114.76,114.7,0.03]
[1744288548463,18.64964886,114.78,114.7,0.03]
[1744288548759,26.56579357,114.76,114.71,26.56579357]
[1744288549342,26.56579357,114.76,114.7,0.03]
[1744288549551,26.56579357,114.76,114.71,26.56579357]
[1744288549950,26.56579357,114.75,114.7,26.59579357]
[1744288550152,26.56579357,114.75,114.71,26.56579357]
[1744288550368,27.36224886,114.78,114.71,26.56579357]
[1744288550564,26.56579357,114.76,114.71,26.56579357]
[1744288550779,26.56579357,114.77,114.73,26.56579357]
[1744288550936,26.56579357,114.78,114.74,26.56579357]
[1744288551137,26.56579357,114.82,114.77,26.56579357]
[1744288551338,8.7077,114.84,114.78,26.56579357]
[1744288551547,26.56579357,114.83,114.79,26.56579357]
[1744288551741,26.56579357,114.83,114.78,26.56579357]
[1744288551971,26.56579357,114.82,114.78,26.56579357]
[1744288552372,26.56579357,114.84,114.8,26.56579357]